[Event "2026 Biel Blitz Open"]
[Site "Biel, CH"]
[Date "2026.07.19"]
[Round "4"]
[White "Kukushkin, Ivan"]
[Black "Arjun Kalyan"]
[Result "0-1"]
[Board "8"]
[TimeControl "180+2"]
[WhiteFideId "11634103"]
[BlackFideId "35018701"]
[WhiteElo "2265"]
[BlackElo "2451"]
[WhiteTitle "FM"]
[BlackTitle "GM"]
[WhiteClock "0:00:04"]
[BlackClock "0:00:20"]
[Variant "Standard"]
[EndDate "2026.07.19"]
[EndTime "12:48:12"]

1. d4 {[%clk 0:03:03]}  d5 {[%clk 0:03:03]} 2. Nf3 {[%clk 0:03:04]}  Nf6 {[%clk 0:03:04]} 3. Bf4 {[%clk 0:03:06]}  e6 {[%clk 0:03:04]}
4. e3 {[%clk 0:03:05]}  Bd6 {[%clk 0:03:05]} 5. c3 {[%clk 0:03:02]}  O-O {[%clk 0:03:02]} 6. Bd3 {[%clk 0:03:02]}  c5 {[%clk 0:02:59]}
7. Bg3 {[%clk 0:02:53]}  Qc7 {[%clk 0:02:54]} 8. Nbd2 {[%clk 0:02:46]}  Nbd7 {[%clk 0:02:54]} 9. Bxd6 {[%clk 0:02:19]}  Qxd6 {[%clk 0:02:54]}
10. O-O {[%clk 0:02:15]}  b6 {[%clk 0:02:41]} 11. Re1 {[%clk 0:02:01]}  Bb7 {[%clk 0:02:36]} 12. e4 {[%clk 0:01:58]}  dxe4 {[%clk 0:02:30]}
13. Nxe4 {[%clk 0:01:58]}  Nxe4 {[%clk 0:02:16]} 14. Bxe4 {[%clk 0:01:58]}  Bxe4 {[%clk 0:02:12]} 15. Rxe4 {[%clk 0:01:58]}  Rad8 {[%clk 0:02:05]}
16. dxc5 {[%clk 0:01:46]}  Nxc5 {[%clk 0:01:55]} 17. Rd4 {[%clk 0:01:44]}  Qc7 {[%clk 0:01:56]} 18. Qe2 {[%clk 0:01:29]}  Rxd4 {[%clk 0:01:48]}
19. Nxd4 {[%clk 0:01:29]}  Rd8 {[%clk 0:01:35]} 20. Re1 {[%clk 0:01:20]}  g6 {[%clk 0:01:43]} 21. Qf3 {[%clk 0:01:08]}  Rd5 {[%clk 0:01:38]}
22. h4 {[%clk 0:01:03]}  h5 {[%clk 0:01:25]} 23. g3 {[%clk 0:01:04]}  a6 {[%clk 0:01:26]} 24. Qe2 {[%clk 0:00:25]}  b5 {[%clk 0:01:24]}
25. Nf3 {[%clk 0:00:25]}  Nd3 {[%clk 0:01:02]} 26. Rd1 {[%clk 0:00:19]}  Qc4 {[%clk 0:00:58]} 27. Nd2 {[%clk 0:00:11]}  Qxa2 {[%clk 0:00:53]}
28. Ne4 {[%clk 0:00:11]}  Qxb2 {[%clk 0:00:35]} 29. Qe3 {[%clk 0:00:09]}  Qc2 {[%clk 0:00:25]} 30. Rd2 {[%clk 0:00:07]}  Qb1+ {[%clk 0:00:26]}
31. Kh2 {[%clk 0:00:06]}  Ne5 {[%clk 0:00:20]} 32. Kg2 {[%clk 0:00:06]}  Rxd2 {[%clk 0:00:20]} 33. Qxd2 {[%clk 0:00:04]}  Qxe4+ {[%clk 0:00:20]} 0-1

[Event "2026 Biel Blitz Open"]
[Site "Biel, CH"]
[Date "2026.07.19"]
[Round "4"]
[White "Elmi, Saad Abobaker"]
[Black "Xu, Chang(CQ)"]
[Result "1-0"]
[Board "9"]
[TimeControl "180+2"]
[WhiteFideId "1553259"]
[BlackFideId "8641757"]
[WhiteElo "2409"]
[BlackElo "2049"]
[WhiteTitle "IM"]
[WhiteClock "0:00:11"]
[BlackClock "0:00:12"]
[Variant "Standard"]
[EndDate "2026.07.19"]
[EndTime "12:56:23"]

1. Nf3 {[%clk 0:03:02]}  Nf6 {[%clk 0:03:03]} 2. c4 {[%clk 0:03:04]}  e6 {[%clk 0:03:04]} 3. Nc3 {[%clk 0:03:04]}  d5 {[%clk 0:03:05]}
4. e3 {[%clk 0:03:05]}  Be7 {[%clk 0:02:57]} 5. b3 {[%clk 0:03:06]}  O-O {[%clk 0:02:57]} 6. Bb2 {[%clk 0:03:07]}  c5 {[%clk 0:02:58]}
7. cxd5 {[%clk 0:03:08]}  exd5 {[%clk 0:02:59]} 8. d4 {[%clk 0:03:09]}  Nc6 {[%clk 0:03:00]} 9. Be2 {[%clk 0:03:11]}  Ne4 {[%clk 0:02:56]}
10. O-O {[%clk 0:03:08]}  Bf6 {[%clk 0:02:57]} 11. Na4 {[%clk 0:03:08]}  Be6 {[%clk 0:01:48]} 12. Rc1 {[%clk 0:02:59]}  cxd4 {[%clk 0:01:41]}
13. Nxd4 {[%clk 0:03:00]}  Rc8 {[%clk 0:01:31]} 14. Nxc6 {[%clk 0:02:37]}  bxc6 {[%clk 0:01:24]} 15. Bd4 {[%clk 0:02:27]}  Bxd4 {[%clk 0:01:15]}
16. Qxd4 {[%clk 0:02:26]}  Qa5 {[%clk 0:01:16]} 17. Rfd1 {[%clk 0:01:17]}  c5 {[%clk 0:01:14]} 18. Qe5 {[%clk 0:01:18]}  Rfd8 {[%clk 0:01:05]}
19. f3 {[%clk 0:01:11]}  Nf6 {[%clk 0:01:05]} 20. Qc3 {[%clk 0:01:09]}  Qxc3 {[%clk 0:00:44]} 21. Rxc3 {[%clk 0:01:08]}  d4 {[%clk 0:00:34]}
22. exd4 {[%clk 0:00:39]}  cxd4 {[%clk 0:00:35]} 23. Rxc8 {[%clk 0:00:30]}  Bxc8 {[%clk 0:00:36]} 24. Nc5 {[%clk 0:00:31]}  Kf8 {[%clk 0:00:34]}
25. Bc4 {[%clk 0:00:25]}  Bf5 {[%clk 0:00:30]} 26. Kf2 {[%clk 0:00:25]}  h5 {[%clk 0:00:30]} 27. b4 {[%clk 0:00:23]}  g5 {[%clk 0:00:23]}
28. Nb3 {[%clk 0:00:22]}  d3 {[%clk 0:00:21]} 29. b5 {[%clk 0:00:14]}  g4 {[%clk 0:00:18]} 30. a4 {[%clk 0:00:15]}  gxf3 {[%clk 0:00:18]}
31. gxf3 {[%clk 0:00:16]}  Ke7 {[%clk 0:00:19]} 32. a5 {[%clk 0:00:16]}  Nd7 {[%clk 0:00:10]} 33. Bxd3 {[%clk 0:00:14]}  Ne5 {[%clk 0:00:10]}
34. Be2 {[%clk 0:00:11]}  Rb8 {[%clk 0:00:11]} 35. Rd5 {[%clk 0:00:09]}  Kf6 {[%clk 0:00:11]} 36. Nd4 {[%clk 0:00:10]}  Be6 {[%clk 0:00:12]}
37. Rxe5 {[%clk 0:00:11]} 1-0

[Event "2026 Biel Blitz Open"]
[Site "Biel, CH"]
[Date "2026.07.19"]
[Round "4"]
[White "Aryan Goyal"]
[Black "Ghosh, Diptayan"]
[Result "0-1"]
[Board "10"]
[TimeControl "180+2"]
[WhiteFideId "366108825"]
[BlackFideId "5045207"]
[WhiteElo "1748"]
[BlackElo "2530"]
[BlackTitle "GM"]
[WhiteClock "0:03:02"]
[BlackClock "0:00:58"]
[Variant "Standard"]
[EndDate "2026.07.19"]
[EndTime "12:56:13"]

1. e4 {[%clk 0:03:03]}  e5 {[%clk 0:03:03]} 2. Nf3 {[%clk 0:03:04]}  Nc6 {[%clk 0:03:04]} 3. Bb5 {[%clk 0:03:05]}  a6 {[%clk 0:03:05]}
4. Ba4 {[%clk 0:03:06]}  Bc5 {[%clk 0:03:06]} 5. c3 {[%clk 0:03:04]}  Nge7 {[%clk 0:03:07]} 6. O-O {[%clk 0:03:00]}  Ba7 {[%clk 0:03:08]}
7. d4 {[%clk 0:03:01]}  Ng6 {[%clk 0:03:09]} 8. Re1 {[%clk 0:03:00]}  O-O {[%clk 0:03:07]} 9. Be3 {[%clk 0:02:59]}  Qf6 {[%clk 0:02:59]}
10. Bg5 {[%clk 0:02:34]}  Qd6 {[%clk 0:03:00]} 11. d5 {[%clk 0:02:28]}  Nce7 {[%clk 0:02:57]} 12. Nbd2 {[%clk 0:02:24]}  b5 {[%clk 0:02:57]}
13. Bc2 {[%clk 0:02:24]}  c6 {[%clk 0:02:56]} 14. dxc6 {[%clk 0:02:22]}  dxc6 {[%clk 0:02:57]} 15. Nf1 {[%clk 0:02:22]}  Qc7 {[%clk 0:02:56]}
16. a4 {[%clk 0:02:16]}  Be6 {[%clk 0:02:42]} 17. axb5 {[%clk 0:02:12]}  axb5 {[%clk 0:02:42]} 18. Be3 {[%clk 0:02:01]}  c5 {[%clk 0:02:35]}
19. Qe2 {[%clk 0:01:59]}  c4 {[%clk 0:02:31]} 20. g3 {[%clk 0:01:19]}  h6 {[%clk 0:02:13]} 21. h4 {[%clk 0:01:16]}  Nc6 {[%clk 0:02:12]}
22. Bxa7 {[%clk 0:00:53]}  Rxa7 {[%clk 0:02:13]} 23. Qe3 {[%clk 0:00:42]}  Rfa8 {[%clk 0:02:07]} 24. Rxa7 {[%clk 0:00:42]}  Rxa7 {[%clk 0:02:08]}
25. Qc5 {[%clk 0:00:43]}  Ra5 {[%clk 0:02:03]} 26. Rd1 {[%clk 0:00:32]}  Nge7 {[%clk 0:01:53]} 27. Ne3 {[%clk 0:00:24]}  b4 {[%clk 0:01:39]}
28. Qd6 {[%clk 0:00:24]}  Qxd6 {[%clk 0:01:39]} 29. Rxd6 {[%clk 0:00:25]}  Ra2 {[%clk 0:01:27]} 30. Nd1 {[%clk 0:00:11]}  bxc3 {[%clk 0:01:26]}
31. Nxc3 {[%clk 0:00:09]}  Nb4 {[%clk 0:01:13]} 32. Bb1 {[%clk 0:00:03]}  Rxb2 {[%clk 0:01:11]} 33. Nxe5 {[%clk 0:00:04]}  Rb3 {[%clk 0:01:10]}
34. Rd8+ {[%clk 0:00:06]}  Kh7 {[%clk 0:01:11]} 35. Nd7 {[%clk 0:00:03]}  Bxd7 {[%clk 0:01:08]} 36. Rxd7 {[%clk 0:00:04]}  Rxc3 {[%clk 0:01:05]}
37. e5+ {[%clk 0:00:05]}  Nd3 {[%clk 0:00:56]} 38. Bxd3+ {[%clk 0:00:03]}  cxd3 {[%clk 0:00:57]} 39. Rxe7 {[%clk 0:00:04]}  d2 {[%clk 0:00:58]}
40. Rd7 {[%clk 0:03:02]} 0-1

[Event "2026 Biel Blitz Open"]
[Site "Biel, CH"]
[Date "2026.07.19"]
[Round "4"]
[White "Filipovic, Branko"]
[Black "Rohrer, Christophe"]
[Result "1-0"]
[Board "11"]
[TimeControl "180+2"]
[WhiteFideId "14507951"]
[BlackFideId "1326546"]
[WhiteElo "2109"]
[BlackElo "2216"]
[WhiteTitle "IM"]
[BlackTitle "FM"]
[WhiteClock "0:00:15"]
[BlackClock "0:00:32"]
[Variant "Standard"]
[EndDate "2026.07.19"]
[EndTime "12:48:45"]

1. d4 {[%clk 0:03:03]}  Nf6 {[%clk 0:03:03]} 2. Bf4 {[%clk 0:03:04]}  e6 {[%clk 0:03:03]} 3. Nf3 {[%clk 0:03:04]}  c5 {[%clk 0:03:04]}
4. e3 {[%clk 0:03:05]}  Nc6 {[%clk 0:03:05]} 5. c3 {[%clk 0:03:06]}  h6 {[%clk 0:03:06]} 6. h3 {[%clk 0:03:04]}  d5 {[%clk 0:03:07]}
7. Nbd2 {[%clk 0:03:04]}  Bd6 {[%clk 0:03:07]} 8. Bxd6 {[%clk 0:02:58]}  Qxd6 {[%clk 0:03:08]} 9. Bb5 {[%clk 0:02:58]}  Bd7 {[%clk 0:03:06]}
10. O-O {[%clk 0:02:56]}  O-O {[%clk 0:03:05]} 11. Qe2 {[%clk 0:02:43]}  a6 {[%clk 0:03:05]} 12. Bxc6 {[%clk 0:02:44]}  Bxc6 {[%clk 0:03:06]}
13. Rfd1 {[%clk 0:02:43]}  Bb5 {[%clk 0:02:43]} 14. c4 {[%clk 0:02:39]}  dxc4 {[%clk 0:02:39]} 15. a4 {[%clk 0:02:39]}  Bc6 {[%clk 0:02:36]}
16. Nxc4 {[%clk 0:02:32]}  Qe7 {[%clk 0:02:34]} 17. Nfe5 {[%clk 0:02:27]}  Rac8 {[%clk 0:02:00]} 18. Nb6 {[%clk 0:01:54]}  Rc7 {[%clk 0:01:54]}
19. a5 {[%clk 0:01:25]}  Bb5 {[%clk 0:01:45]} 20. Qe1 {[%clk 0:01:14]}  Rd8 {[%clk 0:01:29]} 21. dxc5 {[%clk 0:01:09]}  Rxc5 {[%clk 0:01:29]}
22. Rxd8+ {[%clk 0:00:56]}  Qxd8 {[%clk 0:01:30]} 23. Rd1 {[%clk 0:00:49]}  Qc7 {[%clk 0:01:31]} 24. Nf3 {[%clk 0:00:49]}  Rc2 {[%clk 0:01:25]}
25. Nd4 {[%clk 0:00:38]}  Rxb2 {[%clk 0:01:22]} 26. Rc1 {[%clk 0:00:38]}  Qd6 {[%clk 0:01:14]} 27. Qc3 {[%clk 0:00:35]}  Ra2 {[%clk 0:01:00]}
28. Rc2 {[%clk 0:00:19]}  Ra3 {[%clk 0:00:45]} 29. Qc8+ {[%clk 0:00:20]}  Kh7 {[%clk 0:00:49]} 30. Rc1 {[%clk 0:00:17]}  Rxa5 {[%clk 0:00:47]}
31. Qc2+ {[%clk 0:00:15]}  g6 {[%clk 0:00:48]} 32. Qc7 {[%clk 0:00:16]}  Qxc7 {[%clk 0:00:40]} 33. Rxc7 {[%clk 0:00:17]}  Ra1+ {[%clk 0:00:42]}
34. Kh2 {[%clk 0:00:18]}  Kg8 {[%clk 0:00:41]} 35. Rxb7 {[%clk 0:00:17]}  Bd3 {[%clk 0:00:40]} 36. Rb8+ {[%clk 0:00:16]}  Kg7 {[%clk 0:00:41]}
37. Rb7 {[%clk 0:00:17]}  Ne4 {[%clk 0:00:39]} 38. Nxe6+ {[%clk 0:00:17]}  Kf6 {[%clk 0:00:41]} 39. Nf4 {[%clk 0:00:17]}  Nxf2 {[%clk 0:00:41]}
40. Nbd5+ {[%clk 0:00:16]}  Kg7 {[%clk 0:00:40]} 41. Ne6+ {[%clk 0:00:17]}  Kh7 {[%clk 0:00:31]} 42. Nf6+ {[%clk 0:00:17]}  Kh8 {[%clk 0:00:32]}
43. Rb8# {[%clk 0:00:15]} 1-0

[Event "2026 Biel Blitz Open"]
[Site "Biel, CH"]
[Date "2026.07.19"]
[Round "4"]
[White "Python, Noe"]
[Black "Haimovich, Tal"]
[Result "0-1"]
[Board "12"]
[TimeControl "180+2"]
[WhiteFideId "1337637"]
[BlackFideId "2801698"]
[WhiteElo "2010"]
[BlackElo "2347"]
[BlackTitle "IM"]
[WhiteClock "0:00:06"]
[BlackClock "0:01:18"]
[Variant "Standard"]
[EndDate "2026.07.19"]
[EndTime "12:56:33"]

1. e4 {[%clk 0:03:04]}  e5 {[%clk 0:03:03]} 2. Nf3 {[%clk 0:03:05]}  Nc6 {[%clk 0:03:05]} 3. Nc3 {[%clk 0:03:06]}  Nf6 {[%clk 0:03:04]}
4. d4 {[%clk 0:03:07]}  exd4 {[%clk 0:03:04]} 5. Nxd4 {[%clk 0:03:08]}  d6 {[%clk 0:03:05]} 6. Bb5 {[%clk 0:03:09]}  Bd7 {[%clk 0:03:06]}
7. O-O {[%clk 0:03:09]}  Be7 {[%clk 0:03:07]} 8. Nxc6 {[%clk 0:03:10]}  bxc6 {[%clk 0:03:06]} 9. Bd3 {[%clk 0:03:11]}  O-O {[%clk 0:03:06]}
10. f4 {[%clk 0:03:12]}  Rb8 {[%clk 0:03:04]} 11. h3 {[%clk 0:03:10]}  c5 {[%clk 0:03:01]} 12. b3 {[%clk 0:03:09]}  Bc6 {[%clk 0:02:58]}
13. Bb2 {[%clk 0:03:02]}  Re8 {[%clk 0:02:58]} 14. Nd5 {[%clk 0:02:53]}  Bxd5 {[%clk 0:02:54]} 15. exd5 {[%clk 0:02:54]}  Nd7 {[%clk 0:02:54]}
16. Re1 {[%clk 0:02:32]}  Bf6 {[%clk 0:02:52]} 17. Bxf6 {[%clk 0:01:58]}  Nxf6 {[%clk 0:02:52]} 18. Qf3 {[%clk 0:01:52]}  Qd7 {[%clk 0:02:48]}
19. a4 {[%clk 0:01:46]}  Rxe1+ {[%clk 0:02:41]} 20. Rxe1 {[%clk 0:01:46]}  Re8 {[%clk 0:02:39]} 21. Rxe8+ {[%clk 0:01:27]}  Qxe8 {[%clk 0:02:39]}
22. Kf2 {[%clk 0:01:27]}  Kf8 {[%clk 0:02:29]} 23. c4 {[%clk 0:01:01]}  Qb8 {[%clk 0:02:27]} 24. Bc2 {[%clk 0:01:01]}  Qb4 {[%clk 0:02:16]}
25. Qd3 {[%clk 0:00:58]}  Qa3 {[%clk 0:02:12]} 26. Qe2 {[%clk 0:00:43]}  Qb2 {[%clk 0:02:10]} 27. Kg1 {[%clk 0:00:42]}  Qd4+ {[%clk 0:02:10]}
28. Qf2 {[%clk 0:00:43]}  Qxf2+ {[%clk 0:01:56]} 29. Kxf2 {[%clk 0:00:44]}  a5 {[%clk 0:01:55]} 30. g4 {[%clk 0:00:44]}  h6 {[%clk 0:01:53]}
31. g5 {[%clk 0:00:40]}  hxg5 {[%clk 0:01:52]} 32. fxg5 {[%clk 0:00:41]}  Nd7 {[%clk 0:01:51]} 33. Kg3 {[%clk 0:00:39]}  Ne5 {[%clk 0:01:47]}
34. Kf4 {[%clk 0:00:40]}  Ke7 {[%clk 0:01:46]} 35. h4 {[%clk 0:00:30]}  g6 {[%clk 0:01:45]} 36. Ke4 {[%clk 0:00:27]}  Nd7 {[%clk 0:01:37]}
37. Bd1 {[%clk 0:00:27]}  Nb8 {[%clk 0:01:36]} 38. h5 {[%clk 0:00:23]}  gxh5 {[%clk 0:01:36]} 39. Bxh5 {[%clk 0:00:24]}  Nd7 {[%clk 0:01:32]}
40. Kf5 {[%clk 0:00:23]}  Ne5 {[%clk 0:01:32]} 41. Be2 {[%clk 0:00:23]}  Kf8 {[%clk 0:01:30]} 42. Kf6 {[%clk 0:00:19]}  Nd7+ {[%clk 0:01:31]}
43. Kf5 {[%clk 0:00:20]}  Kg7 {[%clk 0:01:32]} 44. Bd1 {[%clk 0:00:20]}  Ne5 {[%clk 0:01:32]} 45. Be2 {[%clk 0:00:21]}  Ng6 {[%clk 0:01:31]}
46. Bd1 {[%clk 0:00:18]}  Ne7+ {[%clk 0:01:30]} 47. Kf4 {[%clk 0:00:16]}  f6 {[%clk 0:01:29]} 48. gxf6+ {[%clk 0:00:15]}  Kxf6 {[%clk 0:01:30]}
49. Bc2 {[%clk 0:00:16]}  c6 {[%clk 0:01:22]} 50. dxc6 {[%clk 0:00:13]}  Nxc6 {[%clk 0:01:22]} 51. Ke4 {[%clk 0:00:12]}  Ke6 {[%clk 0:01:20]}
52. Bd1 {[%clk 0:00:13]}  Nd4 {[%clk 0:01:20]} 53. Bg4+ {[%clk 0:00:09]}  Ke7 {[%clk 0:01:19]} 54. Bd1 {[%clk 0:00:11]}  Kd7 {[%clk 0:01:19]}
55. Kd5 {[%clk 0:00:11]}  Kc7 {[%clk 0:01:20]} 56. Ke4 {[%clk 0:00:07]}  Kc6 {[%clk 0:01:21]} 57. Kd3 {[%clk 0:00:06]}  Kd7 {[%clk 0:01:20]}
58. Ke4 {[%clk 0:00:07]}  Ke6 {[%clk 0:01:21]} 59. Bg4+ {[%clk 0:00:08]}  Ke7 {[%clk 0:01:20]} 60. Bd1 {[%clk 0:00:09]}  Kd7 {[%clk 0:01:21]}
61. Kd5 {[%clk 0:00:11]}  Kc7 {[%clk 0:01:22]} 62. Ke4 {[%clk 0:00:11]}  Kc6 {[%clk 0:01:21]} 63. Kd3 {[%clk 0:00:10]}  Ne6 {[%clk 0:01:20]}
64. Ke4 {[%clk 0:00:08]}  Nd8 {[%clk 0:01:19]} 65. Bf3 {[%clk 0:00:07]}  Nf7 {[%clk 0:01:17]} 66. Kf5+ {[%clk 0:00:07]}  Kc7 {[%clk 0:01:18]}
67. Ke6 {[%clk 0:00:06]} 0-1

[Event "2026 Biel Blitz Open"]
[Site "Biel, CH"]
[Date "2026.07.19"]
[Round "4"]
[White "Dong, Hongfu"]
[Black "El-Mais, Ibaa"]
[Result "1-0"]
[Board "13"]
[TimeControl "180+2"]
[WhiteFideId "8626960"]
[BlackFideId "1312715"]
[WhiteElo "2290"]
[BlackElo "2012"]
[WhiteClock "0:02:02"]
[BlackClock "0:00:07"]
[Variant "Standard"]
[EndDate "2026.07.19"]
[EndTime "12:47:51"]

1. e4 {[%clk 0:03:02]}  c6 {[%clk 0:03:02]} 2. d4 {[%clk 0:03:01]}  d5 {[%clk 0:03:03]} 3. e5 {[%clk 0:03:03]}  c5 {[%clk 0:03:04]}
4. dxc5 {[%clk 0:03:03]}  e6 {[%clk 0:03:06]} 5. Qh5 {[%clk 0:03:04]}  Bxc5 {[%clk 0:02:30]} 6. Bd3 {[%clk 0:03:05]}  Nd7 {[%clk 0:01:33]}
7. Nf3 {[%clk 0:03:06]}  Nf8 {[%clk 0:01:33]} 8. O-O {[%clk 0:02:35]}  Ne7 {[%clk 0:01:22]} 9. Nbd2 {[%clk 0:02:27]}  Nfg6 {[%clk 0:00:49]}
10. Nb3 {[%clk 0:02:28]}  Bb6 {[%clk 0:00:46]} 11. Bg5 {[%clk 0:02:24]}  Bd7 {[%clk 0:00:40]} 12. c4 {[%clk 0:02:20]}  dxc4 {[%clk 0:00:32]}
13. Bxc4 {[%clk 0:02:21]}  Qc7 {[%clk 0:00:12]} 14. Rac1 {[%clk 0:02:20]}  Bc6 {[%clk 0:00:13]} 15. Nbd4 {[%clk 0:02:19]}  O-O {[%clk 0:00:07]}
16. Nxc6 {[%clk 0:02:15]}  Nxc6 {[%clk 0:00:07]} 17. Bd3 {[%clk 0:02:08]}  Ncxe5 {[%clk 0:00:06]} 18. Rxc7 {[%clk 0:02:08]}  Bxc7 {[%clk 0:00:04]}
19. Nxe5 {[%clk 0:02:05]}  Bxe5 {[%clk 0:00:07]} 20. Qe2 {[%clk 0:02:07]}  Bf6 {[%clk 0:00:07]} 21. Bxf6 {[%clk 0:02:08]}  gxf6 {[%clk 0:00:08]}
22. Rc1 {[%clk 0:02:09]}  Rac8 {[%clk 0:00:08]} 23. Rxc8 {[%clk 0:02:10]}  Rxc8 {[%clk 0:00:09]} 24. g3 {[%clk 0:02:11]}  Kg7 {[%clk 0:00:07]}
25. f4 {[%clk 0:02:12]}  f5 {[%clk 0:00:08]} 26. Kg2 {[%clk 0:02:13]}  Ne7 {[%clk 0:00:08]} 27. Qe3 {[%clk 0:02:15]}  b6 {[%clk 0:00:08]}
28. Qd4+ {[%clk 0:02:16]}  Kg8 {[%clk 0:00:07]} 29. Qd7 {[%clk 0:02:16]}  Kf8 {[%clk 0:00:06]} 30. Qxa7 {[%clk 0:02:17]}  Nd5 {[%clk 0:00:05]}
31. Qd7 {[%clk 0:02:12]}  Rc1 {[%clk 0:00:06]} 32. Kh3 {[%clk 0:02:04]}  Rd1 {[%clk 0:00:06]} 33. Qc8+ {[%clk 0:02:04]}  Kg7 {[%clk 0:00:07]}
34. Bc4 {[%clk 0:02:04]}  Ne3 {[%clk 0:00:07]} 35. Be2 {[%clk 0:02:02]}  Rd2 {[%clk 0:00:07]} 36. Qc3+ {[%clk 0:02:02]} 1-0

[Event "2026 Biel Blitz Open"]
[Site "Biel, CH"]
[Date "2026.07.19"]
[Round "4"]
[White "Gluckman, David"]
[Black "Schweizer, Samuel"]
[Result "1-0"]
[Board "14"]
[TimeControl "180+2"]
[WhiteFideId "14300010"]
[BlackFideId "1325353"]
[WhiteElo "2240"]
[BlackElo "2006"]
[WhiteTitle "IM"]
[WhiteClock "0:00:20"]
[BlackClock "0:00:42"]
[Variant "Standard"]
[EndDate "2026.07.19"]
[EndTime "12:56:35"]

1. e4 {[%clk 0:03:03]}  g6 {[%clk 0:03:02]} 2. d4 {[%clk 0:03:00]}  Bg7 {[%clk 0:03:03]} 3. Bc4 {[%clk 0:02:53]}  e6 {[%clk 0:03:00]}
4. Nc3 {[%clk 0:02:42]}  d6 {[%clk 0:03:01]} 5. Nf3 {[%clk 0:02:43]}  Ne7 {[%clk 0:03:01]} 6. O-O {[%clk 0:02:43]}  a6 {[%clk 0:03:02]}
7. a4 {[%clk 0:02:44]}  b6 {[%clk 0:03:02]} 8. Re1 {[%clk 0:02:44]}  Bb7 {[%clk 0:03:03]} 9. Bg5 {[%clk 0:02:40]}  h6 {[%clk 0:03:04]}
10. Bh4 {[%clk 0:02:41]}  g5 {[%clk 0:03:05]} 11. Bg3 {[%clk 0:02:42]}  Nd7 {[%clk 0:03:06]} 12. h3 {[%clk 0:02:38]}  Ng6 {[%clk 0:03:04]}
13. Qe2 {[%clk 0:02:30]}  Qe7 {[%clk 0:02:59]} 14. Rad1 {[%clk 0:02:30]}  h5 {[%clk 0:02:46]} 15. d5 {[%clk 0:02:00]}  e5 {[%clk 0:02:44]}
16. Na2 {[%clk 0:01:52]}  Bc8 {[%clk 0:02:42]} 17. Nb4 {[%clk 0:01:51]}  Nf4 {[%clk 0:02:21]} 18. Bxf4 {[%clk 0:01:51]}  gxf4 {[%clk 0:02:21]}
19. Nxa6 {[%clk 0:01:39]}  Bxa6 {[%clk 0:02:09]} 20. Bxa6 {[%clk 0:01:41]}  Bf6 {[%clk 0:01:55]} 21. Bb5 {[%clk 0:01:40]}  Kf8 {[%clk 0:01:55]}
22. Bxd7 {[%clk 0:01:28]}  Qxd7 {[%clk 0:01:54]} 23. b3 {[%clk 0:01:29]}  Rg8 {[%clk 0:01:53]} 24. Kh1 {[%clk 0:01:31]}  Kg7 {[%clk 0:01:48]}
25. Rd3 {[%clk 0:01:25]}  Kh6 {[%clk 0:01:49]} 26. Rc3 {[%clk 0:01:22]}  Rg6 {[%clk 0:01:48]} 27. Rg1 {[%clk 0:01:21]}  Rag8 {[%clk 0:01:48]}
28. Ne1 {[%clk 0:01:13]}  Bd8 {[%clk 0:01:47]} 29. Rf3 {[%clk 0:01:05]}  f5 {[%clk 0:01:30]} 30. c4 {[%clk 0:01:03]}  Qf7 {[%clk 0:01:21]}
31. Qd3 {[%clk 0:00:59]}  fxe4 {[%clk 0:01:18]} 32. Qxe4 {[%clk 0:01:00]}  Qg7 {[%clk 0:01:15]} 33. Rd3 {[%clk 0:00:57]}  Qd7 {[%clk 0:01:14]}
34. Rf3 {[%clk 0:00:58]}  R8g7 {[%clk 0:01:14]} 35. Rd3 {[%clk 0:00:57]}  Qf7 {[%clk 0:01:10]} 36. Rf3 {[%clk 0:00:58]}  Qe7 {[%clk 0:01:07]}
37. Rd3 {[%clk 0:00:57]}  Qh4 {[%clk 0:01:05]} 38. Rf3 {[%clk 0:00:50]}  Qe7 {[%clk 0:00:55]} 39. b4 {[%clk 0:00:51]}  Qd7 {[%clk 0:00:55]}
40. b5 {[%clk 0:00:50]}  Qc8 {[%clk 0:00:55]} 41. Rd3 {[%clk 0:00:49]}  Bh4 {[%clk 0:00:55]} 42. Rf3 {[%clk 0:00:50]}  Qa8 {[%clk 0:00:56]}
43. Qc2 {[%clk 0:00:49]}  Re7 {[%clk 0:00:50]} 44. g3 {[%clk 0:00:34]}  Reg7 {[%clk 0:00:47]} 45. Rg2 {[%clk 0:00:34]}  Qc8 {[%clk 0:00:46]}
46. gxh4 {[%clk 0:00:33]}  Rxg2 {[%clk 0:00:45]} 47. Nxg2 {[%clk 0:00:34]}  Qg8 {[%clk 0:00:46]} 48. Qf5 {[%clk 0:00:29]}  Rxg2 {[%clk 0:00:44]}
49. Qe6+ {[%clk 0:00:23]}  Qxe6 {[%clk 0:00:41]} 50. dxe6 {[%clk 0:00:24]}  Rg6 {[%clk 0:00:41]} 51. a5 {[%clk 0:00:19]}  bxa5 {[%clk 0:00:42]}
52. Ra3 {[%clk 0:00:20]}  Rxe6 {[%clk 0:00:42]} 1-0